fUSD/lending_fUSD_20260612
["ID","MTS","AMOUNT","RATE_DAILY","PERIOD"]
[424871154,1781219453000,-273.28,0.0002755,30]
[424871166,1781219453000,-159.78,0.00027798,2]
[424871168,1781219453000,-273.28,0.00027872,2]
[424871170,1781219453000,-159.72,0.00027881,7]
[424871175,1781219453000,-273.28,0.00028033,30]
[424871238,1781219454000,-601.43206771,0.00029488,7]
[424871251,1781219454000,-1107.63007,0.00029838,2]
[424871236,1781219454000,-443.69113012,0.00029488,7]
[424871234,1781219454000,-234.0,0.00029285,2]
[424871235,1781219454000,-150.0,0.00029372,2]
[424871229,1781219454000,-518.0,0.00029141,30]
[424871232,1781219454000,-153.0,0.00029142,30]
[424871231,1781219454000,-157.0,0.00029141,30]
[424871228,1781219454000,-151.0,0.00029141,30]
[424871227,1781219454000,-154.0,0.00029141,30]
[424871233,1781219454000,-154.32189334,0.00029147,2]
[424871237,1781219454000,-579.62083326,0.00029488,7]
[424871246,1781219454000,-451.98278266,0.0002949,7]
[424871239,1781219454000,-486.79499394,0.00029488,7]
[424871240,1781219454000,-508.18065404,0.00029488,7]
[424871243,1781219454000,-545.01647465,0.00029488,7]
[424871242,1781219454000,-306.57538114,0.00029488,2]
[424871245,1781219454000,-663.43918891,0.00029489,7]
[424871244,1781219454000,-312.1106258,0.00029488,7]
[424871250,1781219454000,-1068.11,0.00029838,2]
[424871248,1781219454000,-503.0,0.00029759,13]
[424871247,1781219454000,-165.84,0.000297,7]
[424871249,1781219454000,-1030.0,0.00029838,2]
[424871230,1781219454000,-444.0,0.00029141,30]
[424871241,1781219454000,-507.41467421,0.00029488,7]
[424871224,1781219454000,-157.0,0.00029141,30]
[424871213,1781219454000,-200.88,0.00029,2]
[424871225,1781219454000,-272.0,0.00029141,30]
[424871252,1781219454000,-1148.61238259,0.00029838,2]
[424871200,1781219454000,-301.32185511,0.00028628,7]
[424871202,1781219454000,-273.28,0.00028677,7]
[424871201,1781219454000,-164.25,0.00028637,30]
[424871203,1781219454000,-503.0,0.0002869,12]
[424871204,1781219454000,-207.03612316,0.00028767,120]
[424871206,1781219454000,-1561.29,0.00028826,2]
[424871205,1781219454000,-164.25,0.00028818,7]
[424871207,1781219454000,-273.28,0.00028838,2]
[424871208,1781219454000,-475.0,0.000289,2]
[424871211,1781219454000,-273.33,0.00029,30]
[424871226,1781219454000,-153.0,0.00029141,30]
[424871217,1781219454000,-500.0,0.00029,2]
[424871210,1781219454000,-164.28,0.00029,2]
[424871209,1781219454000,-301.15,0.00028971,30]
[424871218,1781219454000,-155.57,0.00029,2]
[424871216,1781219454000,-500.0,0.00029,2]
[424871219,1781219454000,-155.57,0.00029,2]
[424871214,1781219454000,-650.54,0.00029,2]
[424871215,1781219454000,-500.0,0.00029,2]
[424871221,1781219454000,-500.0,0.00029,2]
[424871222,1781219454000,-582.0,0.00029141,30]
[424871220,1781219454000,-500.0,0.00029,2]
[424871223,1781219454000,-157.0,0.00029141,30]
[424871212,1781219454000,-215.2,0.00029,2]
[424871253,1781219454000,-537.6845,0.00029838,2]
[424871290,1781219454000,-772.82777768,0.00030062,7]
[424871254,1781219454000,-1191.11104074,0.00029838,2]
[424871279,1781219454000,-1013.1032934,0.0003,2]
[424871282,1781219454000,-316.0841448,0.0003,120]
[424871287,1781219454000,-154.05580023,0.00030062,7]
[424871296,1781219454000,-676.55289895,0.00030062,7]
[424871286,1781219454000,-160.25063226,0.00030062,7]
[424871289,1781219454000,-326.19699194,0.00030062,7]
[424871288,1781219454000,-665.53669518,0.00030062,7]
[424871293,1781219454000,-407.24189612,0.00030062,7]
[424871294,1781219454000,-730.1924909,0.00030062,7]
[424871292,1781219454000,-398.05419325,0.00030062,7]
[424871295,1781219454000,-677.57420538,0.00030062,7]
[424871281,1781219454000,-26985.49117731,0.0003,5]
[424871297,1781219454000,-459.86307171,0.00030062,2]
[424871301,1781219454000,-436.49734419,0.00030063,7]
[424871298,1781219454000,-726.68863287,0.00030062,7]
[424871304,1781219454000,-245.19300757,0.00030064,7]
[424871299,1781219454000,-468.1659387,0.00030063,7]
[424871302,1781219454000,-228.88846479,0.00030063,7]
[424871307,1781219454000,-230.76624935,0.00030064,7]
[424871303,1781219454000,-185.56821878,0.00030064,7]
[424871306,1781219454000,-284.88636427,0.00030064,7]
[424871305,1781219454000,-602.64371021,0.00030064,7]
[424871308,1781219454000,-1095.38748374,0.0003013,2]
[424871256,1781219454000,-1280.88388877,0.00029838,2]
[424871300,1781219454000,-884.58558521,0.00030063,7]
[424871284,1781219454000,-2131.1,0.00030051,120]
[424871291,1781219454000,-801.90942362,0.00030062,7]
[424871285,1781219454000,-15367.33930991,0.00030052,7]
[424871255,1781219454000,-1235.18214925,0.00029838,2]
[424871280,1781219454000,-164.27,0.0003,7]
[424871262,1781219454000,-1592.87721992,0.00029838,2]
[424871263,1781219454000,-1651.81367706,0.00029838,2]
[424871258,1781219454000,-1377.42282658,0.00029838,2]
[424871259,1781219454000,-1428.38747117,0.00029838,2]
[424871257,1781219454000,-1328.27659266,0.00029838,2]
[424871260,1781219454000,-1481.2378076,0.00029838,2]
[424871261,1781219454000,-1536.04360648,0.00029838,2]
[424871264,1781219454000,-1712.93078311,0.00029838,2]
[424871267,1781219454000,-1910.18787185,0.00029838,2]
[424871269,1781219454000,-2054.15682156,0.00029838,2]
[424871266,1781219454000,-1842.0326633,0.00029838,2]
[424871265,1781219454000,-1776.30922209,0.00029838,2]
[424871276,1781219454000,-150.22234137,0.000299,2]
[424871270,1781219454000,-150.22234137,0.000299,2]
[424871272,1781219454000,-150.22234137,0.000299,2]
[424871271,1781219454000,-150.22234137,0.000299,2]
[424871273,1781219454000,-150.22234137,0.000299,2]
[424871274,1781219454000,-150.22234137,0.000299,2]
[424871275,1781219454000,-150.22234137,0.000299,2]
[424871277,1781219454000,-3429.70620903,0.00029959,2]
[424871278,1781219454000,-327.12986567,0.00029959,2]
[424871268,1781219454000,-1980.8648231,0.00029838,2]
[424871283,1781219454000,-3636.12,0.0003,120]
[424871343,1781219455000,-450.0,0.00030801,2]
[424871351,1781219455000,-503.0,0.00030828,14]
[424871350,1781219455000,-290.0,0.00030801,2]
[424871349,1781219455000,-450.0,0.00030801,2]
[424871345,1781219455000,-450.0,0.00030801,2]
[424871340,1781219455000,-3636.12,0.00030685,120]
[424871341,1781219455000,-450.0,0.00030801,2]
[424871342,1781219455000,-450.0,0.00030801,2]
[424871346,1781219455000,-450.0,0.00030801,2]
[424871336,1781219455000,-846.96775673,0.00030636,7]
[424871348,1781219455000,-450.0,0.00030801,2]
[424871344,1781219455000,-450.0,0.00030801,2]
[424871360,1781219455000,-450.0,0.0003114,2]
[424871353,1781219455000,-2500.0,0.00031,2]
[424871352,1781219455000,-150.0,0.00030841,2]
[424871356,1781219455000,-220.3,0.00031096,5]
[424871354,1781219455000,-234.0,0.00031008,2]
[424871355,1781219455000,-898.0,0.00031048,30]
[424871362,1781219455000,-450.0,0.0003114,2]
[424871359,1781219455000,-450.0,0.0003114,2]
[424871358,1781219455000,-450.0,0.0003114,2]
[424871357,1781219455000,-165.84,0.000311,7]
[424871361,1781219455000,-450.0,0.0003114,2]
[424871337,1781219455000,-845.69112369,0.00030636,7]
[424871363,1781219455000,-450.0,0.0003114,2]
[424871347,1781219455000,-450.0,0.00030801,2]
[424871332,1781219455000,-344.6,0.00030239,2]
[424871310,1781219455000,-646.86723645,0.0003013,2]
[424871339,1781219455000,-753.30463777,0.00030638,7]
[424871368,1781219455000,-157.0,0.00031141,30]
[424871312,1781219455000,-480.62840678,0.0003013,2]
[424871309,1781219455000,-14137.02812904,0.0003013,2]
[424871311,1781219455000,-205.70713865,0.0003013,2]
[424871314,1781219455000,-12329.5723623,0.0003013,2]
[424871316,1781219455000,-1920.06248016,0.0003013,2]
[424871313,1781219455000,-302.73585079,0.0003013,2]
[424871315,1781219455000,-17171.9288112,0.0003013,7]
[424871318,1781219455000,-323.55,0.00030137,5]
[424871317,1781219455000,-30059.13045164,0.0003013,2]
[424871322,1781219455000,-157.0,0.00030141,30]
[424871321,1781219455000,-582.0,0.00030141,30]
[424871335,1781219455000,-150.0,0.00030626,2]
[424871319,1781219455000,-176.46143466,0.00030137,40]
[424871325,1781219455000,-153.0,0.00030141,30]
[424871326,1781219455000,-154.0,0.00030141,30]
[424871324,1781219455000,-272.0,0.00030141,30]
[424871320,1781219455000,-282.89,0.00030137,30]
[424871323,1781219455000,-157.0,0.00030141,30]
[424871328,1781219455000,-518.0,0.00030141,30]
[424871329,1781219455000,-444.0,0.00030141,30]
[424871331,1781219455000,-153.0,0.00030142,30]
[424871330,1781219455000,-157.0,0.00030141,30]
[424871333,1781219455000,-14206.85,0.00030314,2]
[424871338,1781219455000,-908.36079109,0.00030636,7]
[424871334,1781219455000,-6743.0,0.00030626,10]
[424871327,1781219455000,-151.0,0.00030141,30]
[424871366,1781219455000,-441.0,0.0003114,2]
[424871402,1781219455000,-10115.0,0.00031851,10]
[424871367,1781219455000,-582.0,0.00031141,30]
[424871399,1781219455000,-152.0,0.00031691,7]
[424871398,1781219455000,-152.0,0.00031627,7]
[424871411,1781219455000,-1000.0,0.00031937,2]
[424871401,1781219455000,-161.0,0.00031851,3]
[424871400,1781219455000,-274.31352451,0.00031711,2]
[424871403,1781219455000,-503.0,0.00031897,15]
[424871419,1781219455000,-1000.0,0.00031937,2]
[424871404,1781219455000,-158.0,0.00031923,2]
[424871405,1781219455000,-1000.0,0.00031937,2]
[424871408,1781219455000,-1000.0,0.00031937,2]
[424871406,1781219455000,-1000.0,0.00031937,2]
[424871407,1781219455000,-1000.0,0.00031937,2]
[424871410,1781219455000,-1860.86,0.00031937,2]
[424871409,1781219455000,-1000.0,0.00031937,2]
[424871412,1781219455000,-1000.0,0.00031937,2]
[424871415,1781219455000,-1000.0,0.00031937,2]
[424871418,1781219455000,-1000.0,0.00031937,2]
[424871414,1781219455000,-1000.0,0.00031937,2]
[424871417,1781219455000,-1000.0,0.00031937,2]
[424871416,1781219455000,-1000.0,0.00031937,2]
[424871420,1781219455000,-1291.29,0.00031937,2]
[424871413,1781219455000,-1000.0,0.00031937,2]
[424871423,1781219455000,-400.0,0.00031938,30]
[424871421,1781219455000,-3000.0,0.00031937,3]
[424871422,1781219455000,-250.0,0.00031937,30]
[424871395,1781219455000,-1230.0,0.00031589,120]
[424871397,1781219455000,-152.0,0.00031627,7]
[424871370,1781219455000,-272.0,0.00031141,30]
[424871396,1781219455000,-152.0,0.00031627,7]
[424871393,1781219455000,-1300.0,0.00031589,120]
[424871372,1781219455000,-154.0,0.00031141,30]
[424871364,1781219455000,-450.0,0.0003114,2]
[424871371,1781219455000,-153.0,0.00031141,30]
[424871374,1781219455000,-518.0,0.00031141,30]
[424871369,1781219455000,-157.0,0.00031141,30]
[424871365,1781219455000,-450.0,0.0003114,2]
[424871373,1781219455000,-151.0,0.00031141,30]
[424871384,1781219455000,-1016.36130807,0.00031497,7]
[424871386,1781219455000,-925.70237951,0.000315,7]
[424871378,1781219455000,-1000.0,0.000312,7]
[424871375,1781219455000,-444.0,0.00031141,30]
[424871381,1781219455000,-150.313441,0.00031344,2]
[424871376,1781219455000,-157.0,0.00031141,30]
[424871379,1781219455000,-390.32,0.0003132,2]
[424871385,1781219455000,-1090.03294931,0.00031497,7]
[424871390,1781219455000,-152.0,0.00031564,7]
[424871391,1781219455000,-152.0,0.00031564,7]
[424871392,1781219455000,-3636.12,0.00031589,120]
[424871388,1781219455000,-282.89,0.00031507,30]
[424871389,1781219455000,-152.0,0.00031564,7]
[424871383,1781219455000,-358.42,0.0003139,29]
[424871394,1781219455000,-1300.0,0.00031589,120]
[424871382,1781219455000,-5565.214,0.0003139,29]
[424871377,1781219455000,-153.0,0.00031142,30]
[424871380,1781219455000,-200.0,0.00031325,2]
[424871387,1781219455000,-903.96556532,0.000315,7]
[424871462,1781219456000,-190.0,0.00032,30]
[424871467,1781219456000,-400.0,0.00032,30]
[424871459,1781219456000,-200.0,0.00032,30]
[424871470,1781219456000,-400.0,0.00032,30]
[424871455,1781219456000,-700.0,0.00032,120]
[424871460,1781219456000,-200.0,0.00032,30]
[424871458,1781219456000,-200.0,0.00032,30]
[424871457,1781219456000,-580.0,0.00032,120]
[424871453,1781219456000,-1135.67811923,0.00032,120]
[424871463,1781219456000,-1450.0,0.00032,120]
[424871461,1781219456000,-200.0,0.00032,30]
[424871464,1781219456000,-1450.0,0.00032,120]
[424871475,1781219456000,-327.12986567,0.00032132,2]
[424871465,1781219456000,-1440.0,0.00032,120]
[424871468,1781219456000,-400.0,0.00032,30]
[424871469,1781219456000,-400.0,0.00032,30]
[424871480,1781219456000,-272.0,0.00032141,30]
[424871472,1781219456000,-190.24,0.00032055,5]
[424871473,1781219456000,-164.27,0.000321,7]
[424871471,1781219456000,-170.0,0.00032,30]
[424871481,1781219456000,-153.0,0.00032141,30]
[424871474,1781219456000,-3429.70620903,0.00032132,2]
[424871482,1781219456000,-154.0,0.00032141,30]
[424871478,1781219456000,-157.0,0.00032141,30]
[424871452,1781219456000,-215.95576085,0.00032,10]
[424871466,1781219456000,-400.0,0.00032,30]
[424871454,1781219456000,-188.73666689,0.00032,120]
[424871438,1781219456000,-160.85099135,0.00032,120]
[424871456,1781219456000,-700.0,0.00032,120]
[424871479,1781219456000,-157.0,0.00032141,30]
[424871435,1781219456000,-831.43692759,0.00032,120]
[424871428,1781219456000,-231.0,0.00031938,30]
[424871426,1781219456000,-400.0,0.00031938,30]
[424871425,1781219456000,-400.0,0.00031938,30]
[424871432,1781219456000,-172.54293024,0.00032,120]
[424871430,1781219456000,-184.54162468,0.00032,120]
[424871431,1781219456000,-190.70801846,0.00032,120]
[424871433,1781219456000,-178.25990567,0.00032,120]
[424871429,1781219456000,-174.25490651,0.00032,120]
[424871434,1781219456000,-168.3978096,0.00032,120]
[424871427,1781219456000,-400.0,0.00031938,30]
[424871451,1781219456000,-215.95576085,0.00032,30]
[424871437,1781219456000,-412.3864486,0.00032,120]
[424871439,1781219456000,-188.4317516,0.00032,120]
[424871440,1781219456000,-212.97669286,0.00032,120]
[424871447,1781219456000,-185.24154344,0.00032,120]
[424871444,1781219456000,-187.69831663,0.00032,120]
[424871443,1781219456000,-186.27637768,0.00032,120]
[424871441,1781219456000,-160.76412736,0.00032,120]
[424871442,1781219456000,-673.52035383,0.00032,120]
[424871445,1781219456000,-185.87068678,0.00032,120]
[424871446,1781219456000,-508.93368899,0.00032,120]
[424871448,1781219456000,-199.36769843,0.00032,120]
[424871449,1781219456000,-195.495558,0.00032,120]
[424871450,1781219456000,-205.39761631,0.00032,120]
[424871436,1781219456000,-328.35518509,0.00032,120]
[424871424,1781219456000,-400.0,0.00031938,30]
[424871477,1781219456000,-582.0,0.00032141,30]
[424871483,1781219456000,-151.0,0.00032141,30]
[424871511,1781219456000,-151.0,0.00032232,30]
[424871516,1781219456000,-151.0,0.00032232,7]
[424871515,1781219456000,-151.0,0.00032232,7]
[424871518,1781219456000,-154.024201,0.00032232,7]
[424871517,1781219456000,-155.303787,0.00032232,7]
[424871520,1781219456000,-151.0,0.00032232,7]
[424871523,1781219456000,-240.0,0.00032232,60]
[424871524,1781219456000,-200.0,0.00032232,120]
[424871519,1781219456000,-151.0,0.00032232,7]
[424871522,1781219456000,-250.0,0.00032232,60]
[424871521,1781219456000,-250.0,0.00032232,60]
[424871528,1781219456000,-933.0,0.00032365,2]
[424871512,1781219456000,-151.0,0.00032232,30]
[424871526,1781219456000,-15367.33930991,0.00032327,7]
[424871527,1781219456000,-419.0,0.00032365,2]
[424871529,1781219456000,-3636.12,0.00032374,120]
[424871532,1781219456000,-315.41544434,0.00032488,7]
[424871537,1781219456000,-1358.0,0.00032703,2]
[424871534,1781219456000,-2054.13138052,0.00032646,2]
[424871535,1781219456000,-266.71496116,0.00032646,2]
[424871533,1781219456000,-343.28,0.00032539,2]
[424871530,1781219456000,-150.0,0.00032383,2]
[424871539,1781219456000,-382.0,0.00032703,2]
[424871531,1781219456000,-1555.989877,0.00032464,30]
[424871476,1781219456000,-157.47226392,0.00032132,2]
[424871538,1781219456000,-3556.0,0.00032703,2]
[424871525,1781219456000,-280.0,0.00032232,120]
[424871509,1781219456000,-151.0,0.00032232,30]
[424871536,1781219456000,-150.0,0.00032703,2]
[424871514,1781219456000,-151.0,0.00032232,7]
[424871510,1781219456000,-151.0,0.00032232,30]
[424871489,1781219456000,-153.0,0.00032142,30]
[424871487,1781219456000,-240.0,0.00032142,30]
[424871490,1781219456000,-165.84,0.000322,7]
[424871484,1781219456000,-518.0,0.00032141,30]
[424871488,1781219456000,-202.0,0.00032142,30]
[424871486,1781219456000,-157.0,0.00032141,30]
[424871495,1781219456000,-500.0,0.00032231,7]
[424871493,1781219456000,-281.0,0.00032231,120]
[424871492,1781219456000,-194.0,0.00032216,2]
[424871491,1781219456000,-344.6,0.0003221,5]
[424871494,1781219456000,-291.0,0.00032231,120]
[424871497,1781219456000,-2131.1,0.00032231,120]
[424871485,1781219456000,-444.0,0.00032141,30]
[424871507,1781219456000,-151.0,0.00032232,30]
[424871498,1781219456000,-2131.1,0.00032231,120]
[424871508,1781219456000,-151.0,0.00032232,30]
[424871502,1781219456000,-2131.1042073,0.00032231,120]
[424871501,1781219456000,-2131.1,0.00032231,120]
[424871505,1781219456000,-82810.49872525,0.00032232,30]
[424871513,1781219456000,-151.0,0.00032232,30]
[424871503,1781219456000,-100000.0,0.00032232,120]
[424871504,1781219456000,-100000.0,0.00032232,90]
[424871496,1781219456000,-500.0,0.00032231,7]
[424871499,1781219456000,-2131.1,0.00032231,120]
[424871500,1781219456000,-2131.1,0.00032231,120]
[424871506,1781219456000,-100000.0,0.00032232,60]
[424871578,1781219457000,-151.0,0.00033,7]
[424871575,1781219457000,-188.73666689,0.00033,120]
[424871576,1781219457000,-151.0,0.00033,7]
[424871573,1781219457000,-62928.82277024,0.00033,2]
[424871572,1781219457000,-205.39761631,0.00033,120]
[424871570,1781219457000,-508.93368899,0.00033,120]
[424871571,1781219457000,-185.24154344,0.00033,120]
[424871574,1781219457000,-1135.67811923,0.00033,120]
[424871579,1781219457000,-257.173928,0.00033,7]
[424871569,1781219457000,-187.69831663,0.00033,120]
[424871568,1781219457000,-186.27637768,0.00033,120]
[424871585,1781219457000,-265.0,0.00033033,120]
[424871580,1781219457000,-5189.999999,0.00033,30]
[424871582,1781219457000,-500.0,0.00033,120]
[424871581,1781219457000,-500.0,0.00033,120]
[424871583,1781219457000,-480.0,0.00033,120]
[424871584,1781219457000,-355.04,0.00033014,5]
[424871586,1781219457000,-1000.0,0.00033033,120]
[424871588,1781219457000,-582.0,0.00033141,30]
[424871590,1781219457000,-157.0,0.00033141,30]
[424871596,1781219457000,-444.0,0.00033141,30]
[424871594,1781219457000,-151.0,0.00033141,30]
[424871592,1781219457000,-153.0,0.00033141,30]
[424871565,1781219457000,-212.97669286,0.00033,120]
[424871577,1781219457000,-151.0,0.00033,7]
[424871567,1781219457000,-673.52035383,0.00033,120]
[424871549,1781219457000,-151.0,0.00032877,7]
[424871564,1781219457000,-160.85099135,0.00033,120]
[424871591,1781219457000,-272.0,0.00033141,30]
[424871540,1781219457000,-1274.0,0.00032703,2]
[424871541,1781219457000,-187.0,0.0003273,3]
[424871543,1781219457000,-1185.75485942,0.00032789,7]
[424871544,1781219457000,-1271.70510752,0.00032789,7]
[424871542,1781219457000,-157.47226391,0.00032774,2]
[424871550,1781219457000,-151.0,0.00032877,7]
[424871552,1781219457000,-151.0,0.00032877,7]
[424871546,1781219457000,-1054.62649288,0.00032792,7]
[424871547,1781219457000,-151.0,0.00032877,7]
[424871548,1781219457000,-151.0,0.00032877,7]
[424871566,1781219457000,-160.76412736,0.00033,120]
[424871545,1781219457000,-1079.98610943,0.00032792,7]
[424871554,1781219457000,-1570.0,0.00032877,30]
[424871553,1781219457000,-151.0,0.00032877,7]
[424871559,1781219457000,-184.54162468,0.00033,120]
[424871561,1781219457000,-831.43692759,0.00033,120]
[424871556,1781219457000,-678.491809,0.00032877,120]
[424871557,1781219457000,-200.0,0.0003289,10]
[424871562,1781219457000,-328.35518509,0.00033,120]
[424871560,1781219457000,-190.70801846,0.00033,120]
[424871555,1781219457000,-282.89,0.00032877,30]
[424871558,1781219457000,-503.0,0.00032966,16]
[424871563,1781219457000,-412.3864486,0.00033,120]
[424871551,1781219457000,-151.0,0.00032877,7]
[424871587,1781219457000,-500.0,0.00033123,2]
[424871618,1781219457000,-667.804513,0.00033777,120]
[424871589,1781219457000,-157.0,0.00033141,30]
[424871628,1781219457000,-342.14413463,0.00033842,60]
[424871624,1781219457000,-200.0,0.00033802,10]
[424871626,1781219457000,-150.0,0.00033842,60]
[424871627,1781219457000,-202.0,0.00033842,60]
[424871625,1781219457000,-385.21502296,0.00033827,4]
[424871630,1781219457000,-3050.5688166,0.00033853,2]
[424871631,1781219457000,-339144.6730888,0.00033853,2]
[424871633,1781219457000,-247.147394,0.00033853,7]
[424871632,1781219457000,-151.0,0.00033853,7]
[424871634,1781219457000,-1161.489255,0.00033853,7]
[424871637,1781219457000,-1161.489255,0.00033853,7]
[424871622,1781219457000,-8919.21432648,0.00033783,2]
[424871636,1781219457000,-1161.489255,0.00033853,7]
[424871638,1781219457000,-160.0,0.00033869,11]
[424871639,1781219457000,-99805.3446793,0.00033873,2]
[424871641,1781219457000,-666.0,0.00033882,10]
[424871643,1781219457000,-91807.957636,0.00033883,2]
[424871644,1781219457000,-151.0,0.00033883,7]
[424871649,1781219457000,-151.0,0.00033883,7]
[424871646,1781219457000,-151.0,0.00033883,7]
[424871642,1781219457000,-1646644.5769015,0.00033883,2]
[424871648,1781219457000,-248.67532,0.00033883,7]
[424871647,1781219457000,-151.0,0.00033883,7]
[424871597,1781219457000,-157.0,0.00033141,30]
[424871640,1781219457000,-300.0,0.00033882,10]
[424871629,1781219457000,-500.0,0.00033842,60]
[424871635,1781219457000,-1161.489255,0.00033853,7]
[424871619,1781219457000,-1880.05833064,0.00033783,2]
[424871623,1781219457000,-164.27,0.000338,7]
[424871593,1781219457000,-154.0,0.00033141,30]
[424871598,1781219457000,-202.0,0.00033142,30]
[424871599,1781219457000,-153.0,0.00033142,30]
[424871601,1781219457000,-653.183807,0.00033177,120]
[424871600,1781219457000,-1570.0,0.00033151,30]
[424871602,1781219457000,-165.84,0.000332,30]
[424871604,1781219457000,-332.75,0.00033368,7]
[424871608,1781219457000,-157.47226391,0.00033416,2]
[424871605,1781219457000,-215.0,0.00033382,3]
[424871607,1781219457000,-7612.0,0.00033383,5]
[424871603,1781219457000,-3636.12,0.00033361,120]
[424871606,1781219457000,-13487.0,0.00033382,10]
[424871595,1781219457000,-518.0,0.00033141,30]
[424871615,1781219457000,-1570.0,0.00033699,30]
[424871610,1781219457000,-150.334645,0.00033465,2]
[424871613,1781219457000,-400.0,0.00033496,2]
[424871612,1781219457000,-400.0,0.00033496,2]
[424871611,1781219457000,-672.814181,0.00033477,120]
[424871616,1781219457000,-500.0,0.00033727,120]
[424871614,1781219457000,-152.5314,0.00033642,2]
[424871617,1781219457000,-429.0,0.00033777,120]
[424871609,1781219457000,-1570.0,0.00033425,30]
[424871645,1781219457000,-151.0,0.00033883,7]
[424871620,1781219457000,-171.20417352,0.00033783,2]
[424871621,1781219457000,-443.09253188,0.00033783,6]
[424871695,1781219458000,-708.09039993,0.00034,60]
[424871675,1781219458000,-250.0,0.000339,120]
[424871690,1781219458000,-708.09039993,0.00034,30]
[424871686,1781219458000,-5000.0,0.00034,2]
[424871694,1781219458000,-708.09039993,0.00034,60]
[424871681,1781219458000,-14013.248829,0.00033938,2]
[424871684,1781219458000,-700.0,0.00033979,5]
[424871677,1781219458000,-205.0,0.000339,120]
[424871683,1781219458000,-1570.0,0.00033973,30]
[424871682,1781219458000,-354.92,0.00033973,5]
[424871693,1781219458000,-708.09039993,0.00034,60]
[424871685,1781219458000,-387.56306584,0.0003398,30]
[424871689,1781219458000,-708.09039993,0.00034,30]
[424871707,1781219458000,-272.0,0.00034141,30]
[424871687,1781219458000,-708.09039993,0.00034,30]
[424871692,1781219458000,-708.09039993,0.00034,30]
[424871691,1781219458000,-708.09039993,0.00034,30]
[424871697,1781219458000,-503.0,0.00034034,17]
[424871708,1781219458000,-153.0,0.00034141,30]
[424871699,1781219458000,-653.052079,0.00034078,120]
[424871696,1781219458000,-150.0,0.00034002,2]
[424871701,1781219458000,-3636.12,0.0003411,120]
[424871698,1781219458000,-157.47226391,0.00034059,2]
[424871700,1781219458000,-395.0,0.00034078,120]
[424871702,1781219458000,-5800.0,0.00034125,2]
[424871688,1781219458000,-708.09039993,0.00034,30]
[424871678,1781219458000,-1135.67811923,0.000339,120]
[424871650,1781219458000,-151.0,0.00033883,7]
[424871676,1781219458000,-250.0,0.000339,120]
[424871705,1781219458000,-157.0,0.00034141,30]
[424871651,1781219458000,-230.337484,0.00033883,7]
[424871653,1781219458000,-151.0,0.00033883,7]
[424871662,1781219458000,-1314.640837,0.00033883,7]
[424871652,1781219458000,-151.0,0.00033883,7]
[424871654,1781219458000,-151.0,0.00033883,7]
[424871655,1781219458000,-1161.489255,0.00033883,7]
[424871656,1781219458000,-1161.489255,0.00033883,7]
[424871657,1781219458000,-1161.489255,0.00033883,7]
[424871660,1781219458000,-1314.640837,0.00033883,7]
[424871658,1781219458000,-152.603067,0.00033883,7]
[424871659,1781219458000,-1161.489255,0.00033883,7]
[424871661,1781219458000,-1314.640837,0.00033883,7]
[424871663,1781219458000,-1314.640837,0.00033883,7]
[424871665,1781219458000,-328.35518509,0.000339,120]
[424871664,1781219458000,-831.43692759,0.000339,120]